[Event "*** SCC Grand Prix: Titled Tuesday Blitz"]
[Site "Chess.com"]
[Date "2020.10.13"]
[Round "5"]
[White "Yashasd1995"]
[Black "DenLaz"]
[Result "1/2-1/2"]
[WhiteElo "2601"]
[BlackElo "2803"]
[TimeControl "180+1"]
[EndTime "10:56:42 PDT"]
[Termination "Game drawn by repetition"]

1. b3 {[%clk 0:03:00.9]} 1... e5 {[%clk 0:02:59]} 2. Bb2 {[%clk 0:03:00.9]} 2...
Nc6 {[%clk 0:02:59.7]} 3. e3 {[%clk 0:02:58.2]} 3... d5 {[%clk 0:02:59.8]} 4.
Bb5 {[%clk 0:02:57.3]} 4... Bd6 {[%clk 0:02:59.3]} 5. Nf3 {[%clk 0:02:57.2]}
5... Qe7 {[%clk 0:02:55.5]} 6. c4 {[%clk 0:02:57.2]} 6... dxc4 {[%clk
0:02:48.6]} 7. bxc4 {[%clk 0:02:58.1]} 7... Nf6 {[%clk 0:02:48.3]} 8. c5 {[%clk
0:02:58.4]} 8... Bxc5 {[%clk 0:02:48.3]} 9. Nxe5 {[%clk 0:02:57.8]} 9... O-O
{[%clk 0:02:46.7]} 10. Bxc6 {[%clk 0:02:29.9]} 10... bxc6 {[%clk 0:02:47.6]} 11.
O-O {[%clk 0:02:29.6]} 11... Ba6 {[%clk 0:02:33.9]} 12. Re1 {[%clk 0:02:19.4]}
12... Bd6 {[%clk 0:02:29.7]} 13. d4 {[%clk 0:01:29.7]} 13... Bxe5 {[%clk
0:02:20.2]} 14. dxe5 {[%clk 0:01:30.6]} 14... Nd5 {[%clk 0:02:20.7]} 15. Ba3
{[%clk 0:01:28.4]} 15... Qxe5 {[%clk 0:02:20.9]} 16. Nd2 {[%clk 0:01:24]} 16...
Rfd8 {[%clk 0:02:18.9]} 17. Nf3 {[%clk 0:01:15.5]} 17... Qf6 {[%clk 0:02:04]}
18. Qc2 {[%clk 0:01:10.6]} 18... h6 {[%clk 0:01:52.3]} 19. Rac1 {[%clk
0:01:07.2]} 19... Bb7 {[%clk 0:01:47.3]} 20. Bb2 {[%clk 0:00:58.5]} 20... Qe7
{[%clk 0:01:43]} 21. Bxg7 {[%clk 0:00:57.4]} 21... Kxg7 {[%clk 0:01:31.3]} 22.
Qb2+ {[%clk 0:00:57.3]} 22... Qf6 {[%clk 0:01:29.7]} 23. Qxb7 {[%clk 0:00:57.1]}
23... Rab8 {[%clk 0:01:23]} 24. Qxc6 {[%clk 0:00:54.5]} 24... Qxc6 {[%clk
0:01:23.9]} 25. Rxc6 {[%clk 0:00:54.2]} 25... Rb6 {[%clk 0:01:24.6]} 26. Rc2
{[%clk 0:00:50.2]} 26... Kf6 {[%clk 0:01:14.5]} 27. Nd4 {[%clk 0:00:45.4]} 27...
Rc8 {[%clk 0:01:10.2]} 28. Rec1 {[%clk 0:00:42.4]} 28... Nb4 {[%clk 0:01:10.4]}
29. Rxc7 {[%clk 0:00:41.2]} 29... Rxc7 {[%clk 0:01:08]} 30. Rxc7 {[%clk
0:00:42.1]} 30... Nxa2 {[%clk 0:01:05.8]} 31. g4 {[%clk 0:00:39.4]} 31... a6
{[%clk 0:01:04.2]} 32. h4 {[%clk 0:00:38.3]} 32... Nb4 {[%clk 0:01:04.1]} 33.
Kg2 {[%clk 0:00:34.9]} 33... a5 {[%clk 0:01:04.5]} 34. Ra7 {[%clk 0:00:33.7]}
34... Ra6 {[%clk 0:01:04.7]} 35. Rxa6+ {[%clk 0:00:24.9]} 35... Nxa6 {[%clk
0:01:05.6]} 36. Nb5 {[%clk 0:00:25.1]} 36... Ke5 {[%clk 0:01:04.1]} 37. Kf3
{[%clk 0:00:24.3]} 37... a4 {[%clk 0:01:04.2]} 38. Na3 {[%clk 0:00:24.1]} 38...
Nc5 {[%clk 0:01:02]} 39. Nc4+ {[%clk 0:00:23.8]} 39... Kd5 {[%clk 0:01:01]} 40.
Na3 {[%clk 0:00:23.9]} 40... Ne4 {[%clk 0:00:54.7]} 41. Ke2 {[%clk 0:00:20.8]}
41... Kc5 {[%clk 0:00:53.4]} 42. f3 {[%clk 0:00:21.2]} 42... Nd6 {[%clk
0:00:53.5]} 43. f4 {[%clk 0:00:21.3]} 43... Kb4 {[%clk 0:00:53.9]} 44. Nc2+
{[%clk 0:00:21]} 44... Kb3 {[%clk 0:00:53.4]} 45. Nd4+ {[%clk 0:00:21.1]} 45...
Kb2 {[%clk 0:00:54]} 46. Kd3 {[%clk 0:00:20.4]} 46... a3 {[%clk 0:00:54.2]} 47.
Nc2 {[%clk 0:00:20.5]} 47... a2 {[%clk 0:00:54.2]} 48. g5 {[%clk 0:00:20.9]}
48... h5 {[%clk 0:00:51.6]} 49. e4 {[%clk 0:00:20.4]} 49... Nxe4 {[%clk
0:00:49.7]} 50. f5 {[%clk 0:00:20.2]} 50... Nc5+ {[%clk 0:00:45.9]} 51. Kd2
{[%clk 0:00:18.5]} 51... Nb3+ {[%clk 0:00:46.1]} 52. Kd3 {[%clk 0:00:18.6]}
52... Nd4 {[%clk 0:00:42.2]} 53. Na1 {[%clk 0:00:06.1]} 53... Kxa1 {[%clk
0:00:40.8]} 54. g6 {[%clk 0:00:07]} 54... fxg6 {[%clk 0:00:39]} 55. fxg6 {[%clk
0:00:07.9]} 55... Ne6 {[%clk 0:00:39.6]} 56. Kc2 {[%clk 0:00:08.5]} 56... Ng7
{[%clk 0:00:28]} 57. Kc1 {[%clk 0:00:08.7]} 57... Nf5 {[%clk 0:00:28.6]} 58. Kc2
{[%clk 0:00:09.2]} 58... Nh6 {[%clk 0:00:29]} 59. Kc1 {[%clk 0:00:08.9]} 59...
Ng8 {[%clk 0:00:29.9]} 60. g7 {[%clk 0:00:08.2]} 60... Nf6 {[%clk 0:00:30.8]}
61. Kc2 {[%clk 0:00:08.5]} 61... Ng8 {[%clk 0:00:31.3]} 62. Kc1 {[%clk
0:00:08.9]} 62... Nh6 {[%clk 0:00:32.2]} 63. Kc2 {[%clk 0:00:09.3]} 63... Ng8
{[%clk 0:00:33.1]} 64. Kc1 {[%clk 0:00:09.6]} 1/2-1/2

[Event "*** SCC Grand Prix: Titled Tuesday Blitz"]
[Site "Chess.com"]
[Date "2020.10.13"]
[Round "5"]
[White "Lagmantr"]
[Black "Natalya_Buksa"]
[Result "1-0"]
[WhiteElo "2728"]
[BlackElo "2518"]
[TimeControl "180+1"]
[EndTime "10:56:43 PDT"]
[Termination "Lagmantr won by checkmate"]

1. e4 {[%clk 0:03:00.9]} 1... c5 {[%clk 0:02:59.2]} 2. Nf3 {[%clk 0:03:01.4]}
2... Nc6 {[%clk 0:02:57.8]} 3. b3 {[%clk 0:02:58.4]} 3... Nf6 {[%clk 0:02:53.5]}
4. e5 {[%clk 0:02:52.2]} 4... Nd5 {[%clk 0:02:53.7]} 5. Bb2 {[%clk 0:02:48.4]}
5... e6 {[%clk 0:02:49.7]} 6. Be2 {[%clk 0:02:42]} 6... Be7 {[%clk 0:02:49.9]}
7. O-O {[%clk 0:02:42.3]} 7... O-O {[%clk 0:02:50.3]} 8. Nc3 {[%clk 0:02:42.1]}
8... d6 {[%clk 0:02:48.6]} 9. Nxd5 {[%clk 0:02:41.6]} 9... exd5 {[%clk
0:02:48.4]} 10. d4 {[%clk 0:02:42]} 10... dxe5 {[%clk 0:02:47.5]} 11. dxe5
{[%clk 0:02:28.5]} 11... Bg4 {[%clk 0:02:44]} 12. h3 {[%clk 0:02:28]} 12... Bh5
{[%clk 0:02:41.2]} 13. Re1 {[%clk 0:02:27.9]} 13... d4 {[%clk 0:02:40.4]} 14.
Bd3 {[%clk 0:02:24.4]} 14... Bg6 {[%clk 0:02:29.3]} 15. Bxg6 {[%clk 0:02:15.7]}
15... hxg6 {[%clk 0:02:30.2]} 16. c3 {[%clk 0:02:16]} 16... dxc3 {[%clk
0:02:27.6]} 17. Bxc3 {[%clk 0:02:16.4]} 17... Qxd1 {[%clk 0:02:26.5]} 18. Raxd1
{[%clk 0:02:17.3]} 18... Rad8 {[%clk 0:02:27]} 19. Kf1 {[%clk 0:01:52.1]} 19...
Rxd1 {[%clk 0:02:25.8]} 20. Rxd1 {[%clk 0:01:53]} 20... Rd8 {[%clk 0:02:26.3]}
21. Rxd8+ {[%clk 0:01:53.5]} 21... Bxd8 {[%clk 0:02:27.2]} 22. Ke2 {[%clk
0:01:53.4]} 22... Kf8 {[%clk 0:02:27.2]} 23. Kd3 {[%clk 0:01:51.8]} 23... Ke7
{[%clk 0:02:26.7]} 24. Kc4 {[%clk 0:01:40.3]} 24... Bc7 {[%clk 0:02:21.8]} 25.
Kd5 {[%clk 0:01:21.4]} 25... Kd7 {[%clk 0:02:20.1]} 26. Ng5 {[%clk 0:01:16.5]}
26... Nd8 {[%clk 0:01:54.6]} 27. Nxf7 {[%clk 0:00:57.4]} 27... Nxf7 {[%clk
0:01:43.5]} 28. e6+ {[%clk 0:00:57.6]} 28... Ke7 {[%clk 0:01:44.4]} 29. exf7
{[%clk 0:00:57.9]} 29... Kxf7 {[%clk 0:01:45.3]} 30. Be5 {[%clk 0:00:57.7]}
30... Bd8 {[%clk 0:00:57.5]} 31. f4 {[%clk 0:00:54.5]} 31... b6 {[%clk
0:00:55.1]} 32. Kc6 {[%clk 0:00:52.2]} 32... Be7 {[%clk 0:00:41.3]} 33. a4
{[%clk 0:00:45.9]} 33... Bd8 {[%clk 0:00:35.8]} 34. Kb7 {[%clk 0:00:45.6]} 34...
Ke6 {[%clk 0:00:31.8]} 35. Kxa7 {[%clk 0:00:39.1]} 35... g5 {[%clk 0:00:30.2]}
36. Kb7 {[%clk 0:00:35.1]} 36... Kf5 {[%clk 0:00:27.4]} 37. Bc7 {[%clk
0:00:30.8]} 37... Be7 {[%clk 0:00:15.4]} 38. fxg5 {[%clk 0:00:30.6]} 38... Kxg5
{[%clk 0:00:14.4]} 39. Kxb6 {[%clk 0:00:30.6]} 39... Kf5 {[%clk 0:00:14.4]} 40.
a5 {[%clk 0:00:31]} 40... Ke4 {[%clk 0:00:14.9]} 41. a6 {[%clk 0:00:31.3]} 41...
c4 {[%clk 0:00:15.5]} 42. a7 {[%clk 0:00:26.6]} 42... cxb3 {[%clk 0:00:14.9]}
43. a8=Q+ {[%clk 0:00:27.1]} 43... Kd3 {[%clk 0:00:15.8]} 44. Qd5+ {[%clk
0:00:24.4]} 44... Kc2 {[%clk 0:00:16.7]} 45. Qe4+ {[%clk 0:00:24.6]} 45... Kc1
{[%clk 0:00:16.1]} 46. Bf4+ {[%clk 0:00:18.9]} 46... Kd1 {[%clk 0:00:15.7]} 47.
Qxe7 {[%clk 0:00:19.8]} 47... b2 {[%clk 0:00:16.2]} 48. Qe4 {[%clk 0:00:19.3]}
48... g5 {[%clk 0:00:15.9]} 49. Qb1+ {[%clk 0:00:19]} 49... Ke2 {[%clk
0:00:15.9]} 50. Qxb2+ {[%clk 0:00:19.4]} 50... Kd3 {[%clk 0:00:15.9]} 51. Qd2+
{[%clk 0:00:13.9]} 51... Kc4 {[%clk 0:00:16.8]} 52. Be5 {[%clk 0:00:12.8]} 52...
g4 {[%clk 0:00:16.7]} 53. Kc6 {[%clk 0:00:08.2]} 53... g3 {[%clk 0:00:15.8]} 54.
Qc3# {[%clk 0:00:08.5]} 1-0

[Event "*** SCC Grand Prix: Titled Tuesday Blitz"]
[Site "Chess.com"]
[Date "2020.10.13"]
[Round "5"]
[White "Gulkov_Igor"]
[Black "mirceaparligras"]
[Result "0-1"]
[WhiteElo "2456"]
[BlackElo "2636"]
[TimeControl "180+1"]
[EndTime "10:56:43 PDT"]
[Termination "mirceaparligras won on time"]

1. Nf3 {[%clk 0:03:00.9]} 1... Nf6 {[%clk 0:02:58.7]} 2. c4 {[%clk 0:03:00.5]}
2... e6 {[%clk 0:02:57.6]} 3. Nc3 {[%clk 0:03:00.3]} 3... c5 {[%clk 0:02:56.8]}
4. g3 {[%clk 0:02:59.6]} 4... d5 {[%clk 0:02:55.4]} 5. cxd5 {[%clk 0:02:59]}
5... Nxd5 {[%clk 0:02:55.1]} 6. Bg2 {[%clk 0:02:58.6]} 6... Nc6 {[%clk 0:02:53]}
7. O-O {[%clk 0:02:58.4]} 7... Be7 {[%clk 0:02:51.6]} 8. d4 {[%clk 0:02:57.8]}
8... O-O {[%clk 0:02:50.1]} 9. Nxd5 {[%clk 0:02:57.5]} 9... exd5 {[%clk
0:02:47.6]} 10. dxc5 {[%clk 0:02:57.5]} 10... Bxc5 {[%clk 0:02:47.3]} 11. Bg5
{[%clk 0:02:56.9]} 11... f6 {[%clk 0:02:39.2]} 12. Bd2 {[%clk 0:02:54.6]} 12...
Be6 {[%clk 0:02:27.5]} 13. Rc1 {[%clk 0:02:51.9]} 13... Bb6 {[%clk 0:02:26.9]}
14. e3 {[%clk 0:02:43.2]} 14... Rc8 {[%clk 0:02:22.4]} 15. Bc3 {[%clk
0:02:41.5]} 15... Bf7 {[%clk 0:02:13.9]} 16. Nd4 {[%clk 0:02:39.1]} 16... Ne5
{[%clk 0:02:10.7]} 17. Qe2 {[%clk 0:02:22]} 17... Re8 {[%clk 0:02:05.6]} 18.
Rfd1 {[%clk 0:02:20.3]} 18... Qd7 {[%clk 0:01:56.9]} 19. Qb5 {[%clk 0:02:10.5]}
19... Qxb5 {[%clk 0:01:44.9]} 20. Nxb5 {[%clk 0:02:09.9]} 20... Red8 {[%clk
0:01:43.5]} 21. Bd4 {[%clk 0:02:05.4]} 21... Bxd4 {[%clk 0:01:32.3]} 22. Nxd4
{[%clk 0:01:33.3]} 22... Kf8 {[%clk 0:01:05.2]} 23. Bh3 {[%clk 0:01:28.5]} 23...
Rxc1 {[%clk 0:00:52]} 24. Rxc1 {[%clk 0:01:28.1]} 24... Nc4 {[%clk 0:00:27.7]}
25. b3 {[%clk 0:01:25.4]} 25... Nd6 {[%clk 0:00:23.8]} 26. Rc7 {[%clk
0:01:23.6]} 26... a5 {[%clk 0:00:14.4]} 27. Be6 {[%clk 0:01:17.9]} 27... Re8
{[%clk 0:00:13.3]} 28. Bxf7 {[%clk 0:01:14.6]} 28... Nxf7 {[%clk 0:00:14.2]} 29.
Rxb7 {[%clk 0:01:15]} 29... Ne5 {[%clk 0:00:13.3]} 30. Rb5 {[%clk 0:01:05.4]}
30... Rc8 {[%clk 0:00:12.8]} 31. Rxd5 {[%clk 0:00:55.3]} 31... Rc1+ {[%clk
0:00:12.6]} 32. Kg2 {[%clk 0:00:55]} 32... a4 {[%clk 0:00:13.5]} 33. bxa4 {[%clk
0:00:54.4]} 33... Ra1 {[%clk 0:00:12.6]} 34. Ra5 {[%clk 0:00:37.5]} 34... Rxa2
{[%clk 0:00:12.7]} 35. Ra8+ {[%clk 0:00:37.3]} 35... Kf7 {[%clk 0:00:12.9]} 36.
Ra7+ {[%clk 0:00:37.6]} 36... Ke8 {[%clk 0:00:10.6]} 37. Ne6 {[%clk 0:00:37.1]}
37... Nd3 {[%clk 0:00:10.4]} 38. Nxg7+ {[%clk 0:00:36]} 38... Kd8 {[%clk
0:00:10.7]} 39. Ne6+ {[%clk 0:00:35.2]} 39... Ke8 {[%clk 0:00:11.2]} 40. Nf4
{[%clk 0:00:27]} 40... Nxf2 {[%clk 0:00:10]} 41. Kf3 {[%clk 0:00:24.8]} 41... f5
{[%clk 0:00:10.1]} 42. g4 {[%clk 0:00:12.9]} 42... Nxg4 {[%clk 0:00:10.1]} 43.
h3 {[%clk 0:00:12.4]} 43... Ne5+ {[%clk 0:00:09.8]} 44. Kg3 {[%clk 0:00:11.7]}
44... Ra3 {[%clk 0:00:10.6]} 45. Nd5 {[%clk 0:00:11]} 45... Ng6 {[%clk 0:00:09]}
46. Nf6+ {[%clk 0:00:10]} 46... Kd8 {[%clk 0:00:09.3]} 47. Nxh7 {[%clk
0:00:09.8]} 47... f4+ {[%clk 0:00:08]} 48. Kf2 {[%clk 0:00:08.9]} 48... fxe3+
{[%clk 0:00:08.1]} 49. Ke1 {[%clk 0:00:09.2]} 49... Nf4 {[%clk 0:00:08.2]} 0-1

[Event "*** SCC Grand Prix: Titled Tuesday Blitz"]
[Site "Chess.com"]
[Date "2020.10.13"]
[Round "5"]
[White "VMikhalevski"]
[Black "banane_verte"]
[Result "1/2-1/2"]
[WhiteElo "2697"]
[BlackElo "2440"]
[TimeControl "180+1"]
[EndTime "10:56:43 PDT"]
[Termination "Game drawn by agreement"]

1. Nf3 {[%clk 0:03:00.9]} 1... Nf6 {[%clk 0:03:00]} 2. g3 {[%clk 0:03:00.5]}
2... e6 {[%clk 0:02:56.5]} 3. Bg2 {[%clk 0:03:00.2]} 3... d5 {[%clk 0:02:57.1]}
4. O-O {[%clk 0:03:00.3]} 4... Be7 {[%clk 0:02:57.4]} 5. c4 {[%clk 0:03:00.8]}
5... O-O {[%clk 0:02:57.1]} 6. b3 {[%clk 0:03:00.8]} 6... b6 {[%clk 0:02:53.2]}
7. Bb2 {[%clk 0:03:00.1]} 7... Bb7 {[%clk 0:02:53.1]} 8. Nc3 {[%clk 0:02:59.4]}
8... Nbd7 {[%clk 0:02:51.6]} 9. cxd5 {[%clk 0:02:56.6]} 9... Nxd5 {[%clk
0:02:44.7]} 10. Re1 {[%clk 0:02:55]} 10... c5 {[%clk 0:02:41.5]} 11. Nxd5 {[%clk
0:02:54.3]} 11... Bxd5 {[%clk 0:02:40.7]} 12. e4 {[%clk 0:02:53.2]} 12... Bb7
{[%clk 0:02:38.8]} 13. d4 {[%clk 0:02:53.3]} 13... cxd4 {[%clk 0:02:36.1]} 14.
Nxd4 {[%clk 0:02:52.7]} 14... Nc5 {[%clk 0:02:27.5]} 15. b4 {[%clk 0:02:48.8]}
15... Nd7 {[%clk 0:02:14.8]} 16. Qb3 {[%clk 0:02:47.3]} 16... Rc8 {[%clk
0:01:50.2]} 17. Rad1 {[%clk 0:02:39.9]} 17... Qe8 {[%clk 0:01:48.3]} 18. Nxe6
{[%clk 0:02:38.3]} 18... fxe6 {[%clk 0:01:42.7]} 19. Qxe6+ {[%clk 0:02:38]}
19... Qf7 {[%clk 0:01:28.2]} 20. Qxf7+ {[%clk 0:02:29.9]} 20... Rxf7 {[%clk
0:01:29.1]} 21. Rxd7 {[%clk 0:02:28.6]} 21... Bxb4 {[%clk 0:01:29.1]} 22. Red1
{[%clk 0:02:17.4]} 22... Bc6 {[%clk 0:01:07.2]} 23. Rxf7 {[%clk 0:02:03.4]}
23... Kxf7 {[%clk 0:01:08.1]} 24. Bh3 {[%clk 0:02:01.7]} 24... Re8 {[%clk
0:01:05.7]} 25. f3 {[%clk 0:01:53.9]} 25... Re7 {[%clk 0:00:58.1]} 26. Kg2
{[%clk 0:01:50.7]} 26... Rc7 {[%clk 0:00:55.2]} 27. Rc1 {[%clk 0:01:48.4]} 27...
Bc5 {[%clk 0:00:53.4]} 28. Be5 {[%clk 0:01:44.5]} 28... Re7 {[%clk 0:00:53.2]}
29. Bc3 {[%clk 0:01:42.2]} 29... Rc7 {[%clk 0:00:53]} 30. Bg4 {[%clk 0:01:38]}
30... Ba3 {[%clk 0:00:51.7]} 31. Rd1 {[%clk 0:01:35.8]} 31... Bb5 {[%clk
0:00:45.6]} 32. Be1 {[%clk 0:01:30.2]} 32... Rc2+ {[%clk 0:00:42.5]} 33. Rd2
{[%clk 0:01:15.4]} 33... Rxd2+ {[%clk 0:00:42.6]} 34. Bxd2 {[%clk 0:01:14.8]}
34... Bc4 {[%clk 0:00:43.5]} 35. e5 {[%clk 0:01:09.8]} 35... Bxa2 {[%clk
0:00:42.8]} 36. f4 {[%clk 0:01:10.4]} 36... Bd5+ {[%clk 0:00:40.9]} 37. Kf1
{[%clk 0:01:07.3]} 37... Bc5 {[%clk 0:00:36.2]} 38. Bc8 {[%clk 0:01:04.9]} 38...
a5 {[%clk 0:00:35.7]} 39. f5 {[%clk 0:01:04.1]} 39... h6 {[%clk 0:00:30.8]} 40.
e6+ {[%clk 0:01:00.4]} 40... Ke7 {[%clk 0:00:30.8]} 41. Bc3 {[%clk 0:00:59.7]}
41... Kf8 {[%clk 0:00:27.4]} 42. g4 {[%clk 0:00:54.8]} 42... a4 {[%clk
0:00:26.1]} 43. h4 {[%clk 0:00:54.4]} 43... b5 {[%clk 0:00:23.9]} 44. g5 {[%clk
0:00:53.5]} 44... hxg5 {[%clk 0:00:24.8]} 45. hxg5 {[%clk 0:00:53.3]} 45... b4
{[%clk 0:00:25.4]} 46. Be5 {[%clk 0:00:52.8]} 46... a3 {[%clk 0:00:20.3]} 47. f6
{[%clk 0:00:52.2]} 47... gxf6 {[%clk 0:00:21]} 48. gxf6 {[%clk 0:00:51.1]} 48...
b3 {[%clk 0:00:18.7]} 49. e7+ {[%clk 0:00:46.1]} 49... Bxe7 {[%clk 0:00:17.1]}
50. fxe7+ {[%clk 0:00:45.9]} 50... Kxe7 {[%clk 0:00:18]} 51. Bf5 {[%clk
0:00:44.7]} 51... b2 {[%clk 0:00:15.8]} 52. Bc3 {[%clk 0:00:40]} 52... Kf7
{[%clk 0:00:09.7]} 53. Ke2 {[%clk 0:00:37]} 53... Ba2 {[%clk 0:00:05.4]} 54. Kd2
{[%clk 0:00:35.7]} 54... b1=Q {[%clk 0:00:03.6]} 55. Bxb1 {[%clk 0:00:35.3]}
55... Bxb1 {[%clk 0:00:04.5]} 56. Bb4 {[%clk 0:00:34.8]} 56... a2 {[%clk
0:00:05.4]} 57. Bc3 {[%clk 0:00:35.3]} 57... Be4 {[%clk 0:00:04.6]} 58. Ke3
{[%clk 0:00:35.6]} 58... Bg6 {[%clk 0:00:05.3]} 59. Kf4 {[%clk 0:00:35.8]} 59...
Ke6 {[%clk 0:00:06.2]} 60. Kg5 {[%clk 0:00:35.5]} 60... Bf7 {[%clk 0:00:07.1]}
61. Kf4 {[%clk 0:00:35.6]} 61... Kd5 {[%clk 0:00:07.7]} 62. Ke3 {[%clk
0:00:36.2]} 62... Kc4 {[%clk 0:00:08.6]} 63. Kd2 {[%clk 0:00:36.7]} 1/2-1/2

[Event "*** SCC Grand Prix: Titled Tuesday Blitz"]
[Site "Chess.com"]
[Date "2020.10.13"]
[Round "5"]
[White "mfwagnerpeixoto"]
[Black "onnoelgersma"]
[Result "1-0"]
[WhiteElo "2264"]
[BlackElo "2477"]
[TimeControl "180+1"]
[EndTime "10:56:44 PDT"]
[Termination "mfwagnerpeixoto won by resignation"]

1. d4 {[%clk 0:03:00.9]} 1... d5 {[%clk 0:02:56.9]} 2. Bf4 {[%clk 0:02:58.9]}
2... Nf6 {[%clk 0:02:56.1]} 3. e3 {[%clk 0:02:58.8]} 3... c5 {[%clk 0:02:56.4]}
4. c3 {[%clk 0:02:58.1]} 4... e6 {[%clk 0:02:56.8]} 5. Nf3 {[%clk 0:02:57]} 5...
Nc6 {[%clk 0:02:57]} 6. Nbd2 {[%clk 0:02:53.9]} 6... Nh5 {[%clk 0:02:56.8]} 7.
Bg5 {[%clk 0:02:46.8]} 7... f6 {[%clk 0:02:57]} 8. Ng1 {[%clk 0:02:34]} 8... g6
{[%clk 0:02:45.5]} 9. Bh4 {[%clk 0:02:33.3]} 9... Ng7 {[%clk 0:02:45.4]} 10. f4
{[%clk 0:02:30]} 10... Nf5 {[%clk 0:02:36.8]} 11. Bf2 {[%clk 0:02:29.7]} 11...
h5 {[%clk 0:02:37.4]} 12. Ngf3 {[%clk 0:02:27]} 12... Bd6 {[%clk 0:02:28.1]} 13.
Bd3 {[%clk 0:02:25.6]} 13... Bd7 {[%clk 0:02:22.2]} 14. g3 {[%clk 0:02:05.4]}
14... cxd4 {[%clk 0:02:17.4]} 15. exd4 {[%clk 0:02:02.3]} 15... Kf7 {[%clk
0:02:09.8]} 16. O-O {[%clk 0:01:58.2]} 16... a6 {[%clk 0:02:03.7]} 17. Re1
{[%clk 0:01:46.8]} 17... b5 {[%clk 0:02:00.2]} 18. a4 {[%clk 0:01:46]} 18... Rb8
{[%clk 0:02:00.4]} 19. axb5 {[%clk 0:01:45.6]} 19... axb5 {[%clk 0:02:01.3]} 20.
Qe2 {[%clk 0:01:40.3]} 20... Qb6 {[%clk 0:01:58.8]} 21. Kg2 {[%clk 0:01:27.9]}
21... Na5 {[%clk 0:01:49.1]} 22. h3 {[%clk 0:01:15.2]} 22... Nc4 {[%clk
0:01:20.3]} 23. b3 {[%clk 0:00:58.8]} 23... Nxd2 {[%clk 0:01:12.5]} 24. Qxd2
{[%clk 0:00:59.7]} 24... Nh6 {[%clk 0:01:06.9]} 25. Qc2 {[%clk 0:00:55.6]} 25...
Rhg8 {[%clk 0:01:04.3]} 26. b4 {[%clk 0:00:49.8]} 26... Rbc8 {[%clk 0:01:00.2]}
27. Qb2 {[%clk 0:00:38]} 27... Qc6 {[%clk 0:00:49]} 28. Rac1 {[%clk 0:00:32.5]}
28... Ra8 {[%clk 0:00:41.2]} 29. Rf1 {[%clk 0:00:30.8]} 29... Ra4 {[%clk
0:00:36]} 30. Be3 {[%clk 0:00:18.4]} 30... Nf5 {[%clk 0:00:33.9]} 31. Bf2 {[%clk
0:00:15]} 31... Nh6 {[%clk 0:00:31.2]} 32. Bc2 {[%clk 0:00:15]} 32... Ra6 {[%clk
0:00:30.3]} 33. Bd3 {[%clk 0:00:14]} 33... Rga8 {[%clk 0:00:30.3]} 34. Qe2
{[%clk 0:00:12.5]} 34... Ra2 {[%clk 0:00:27.6]} 35. Rc2 {[%clk 0:00:12.8]} 35...
Rxc2 {[%clk 0:00:27.4]} 36. Qxc2 {[%clk 0:00:13.7]} 36... Ra3 {[%clk 0:00:27.2]}
37. Bxg6+ {[%clk 0:00:13.2]} 37... Kf8 {[%clk 0:00:24.4]} 38. Bxh5 {[%clk
0:00:13.4]} 38... Nf5 {[%clk 0:00:23.7]} 39. g4 {[%clk 0:00:12.8]} 39... Bxf4
{[%clk 0:00:16.5]} 40. gxf5 {[%clk 0:00:11.9]} 40... Rxc3 {[%clk 0:00:17]} 41.
Qa2 {[%clk 0:00:11.2]} 41... e5 {[%clk 0:00:16.4]} 42. dxe5 {[%clk 0:00:08.7]}
42... Bxf5 {[%clk 0:00:16.9]} 43. Bc5+ {[%clk 0:00:08]} 43... Kg7 {[%clk
0:00:16.7]} 44. exf6+ {[%clk 0:00:07.3]} 44... Kh6 {[%clk 0:00:15.9]} 45. Qf2
{[%clk 0:00:06.3]} 45... d4 {[%clk 0:00:15.6]} 46. Kg1 {[%clk 0:00:05.5]} 46...
Be3 {[%clk 0:00:15.2]} 47. Bxd4 {[%clk 0:00:05.3]} 47... Bxf2+ {[%clk
0:00:14.7]} 48. Bxf2 {[%clk 0:00:06.2]} 48... Rxf3 {[%clk 0:00:14.6]} 49. Bxf3
{[%clk 0:00:04.8]} 49... Qxf3 {[%clk 0:00:15.5]} 50. f7 {[%clk 0:00:05.5]} 50...
Kg7 {[%clk 0:00:11.7]} 51. Bd4+ {[%clk 0:00:04.7]} 1-0